bitfinex/quotes_ETHUSD_20240702
["timestamp","ask_amount","ask_price","bid_price","bid_amount"]
[1719895957140,2.88734,3463.4,3463.3,0.07627771]
[1719895957459,2.88734,3463.4,3463.2,0.817]
[1719895957859,2.88734,3463.4,3463.3,0.07627771]
[1719895958227,2.88734,3463.4,3463.2,0.817]
[1719895958630,2.88734,3463.4,3463.3,0.07627771]
[1719895958932,2.88734,3463.4,3463.2,0.817]
[1719895959131,2.88734,3463.4,3463.3,0.07627771]
[1719895959353,2.88734,3463.4,3463.2,0.817]
[1719895959559,2.88734,3463.4,3463.3,0.07627771]
[1719895959760,2.88734,3463.4,3463.2,0.817]
[1719895959931,2.88734,3463.4,3463.3,0.07627771]
[1719895960133,2.88734,3463.4,3463.2,0.817]
[1719895960328,2.88741,3463.3,3463.2,0.817]
[1719895963878,2.88741,3463.3,3463.2,0.89330468]
[1719895972167,2.88741,3463.3,3463.2,0.07630468]
[1719895976899,2.88727,3463.5,3463.2,0.07630468]
[1719895977195,2.88733,3463.4,3463.3,0.817]
[1719895982173,5.36337,3463.6,3463.3,0.817]
[1719895982488,0.20998218,3463.5,3463.3,0.817]
[1719895982693,5.36337,3463.6,3463.3,0.817]
[1719895982893,0.20998412,3463.5,3463.3,0.817]
[1719895983093,5.36337,3463.6,3463.3,0.817]
[1719895983293,0.20998373,3463.5,3463.3,0.817]
[1719895983500,5.36337,3463.6,3463.3,0.817]
[1719895983711,0.20998392,3463.5,3463.4,0.07122759]
[1719895984110,2.88717,3463.6,3463.3,0.817]
[1719895984320,0.20998131,3463.5,3463.3,0.817]
[1719895984608,2.88717,3463.6,3463.4,0.07122759]
[1719895984781,0.20998355,3463.5,3463.1,0.817]
[1719895984980,2.88717,3463.6,3463.1,0.817]
[1719895985212,0.20998281,3463.5,3463.2,0.07122759]
[1719895985410,2.88717,3463.6,3463.2,0.07122759]
[1719895985632,0.20998192,3463.5,3463.2,0.07122759]
[1719895985838,2.88717,3463.6,3463.2,0.07122759]
[1719895986243,2.88703,3463.8,3463.3,0.817]
[1719895986437,0.20997605,3463.7,3463.4,0.07122085]
[1719895986607,0.20997605,3463.6,3463.4,0.07122085]
[1719895986808,2.8871,3463.7,3463.4,0.07122085]
[1719895987110,0.20997617,3463.6,3463.4,0.07122085]
[1719895987329,2.88703,3463.8,3463.4,0.07122085]
[1719895987639,0.20997603,3463.7,3463.4,0.07122085]
[1719895987842,0.20997603,3463.6,3463.4,0.07122085]
[1719895988020,2.88703,3463.8,3463.4,0.07122085]
[1719895988207,0.20997606,3463.7,3463.4,0.07122085]
[1719895988406,0.20997606,3463.6,3463.4,0.07122085]
[1719895988663,2.88703,3463.8,3463.4,0.07122085]
[1719895988875,0.20997571,3463.7,3463.4,0.07122085]
[1719895989010,0.20997571,3463.6,3463.4,0.07122085]
[1719895989327,2.88709,3463.7,3463.4,0.07122085]
[1719895989532,0.20997571,3463.6,3463.4,0.07122085]
[1719895989716,2.88709,3463.7,3463.4,0.07122085]
[1719895990025,0.20997566,3463.6,3463.4,0.07122085]
[1719895990230,3.0,3463.8,3463.4,0.07122085]
[1719895990420,0.20997545,3463.7,3463.4,0.07122085]
[1719895990623,3.0,3463.8,3463.4,0.07122085]
[1719895990624,0.20997547,3463.6,3463.4,0.07122085]
[1719895990824,3.0,3463.8,3463.4,0.07122085]
[1719895991012,0.20997547,3463.7,3463.5,0.817]
[1719895991341,0.20997547,3463.6,3463.5,0.817]
[1719895991505,0.20997547,3463.7,3463.5,0.817]
[1719895991710,0.20997547,3463.6,3463.5,0.817]
[1719895993649,5.88701,3463.8,3463.5,0.817]
[1719895993848,0.20997523,3463.7,3463.5,0.817]
[1719895994033,0.20997564,3463.6,3463.5,0.817]
[1719895997142,0.20997094,3463.6,3463.5,0.817]
[1719895998724,2.8871,3463.7,3463.5,0.817]
[1719896001319,0.20997206,3463.6,3463.5,0.817]
[1719896003147,0.20997206,3463.6,3463.3,0.817]
[1719896005929,2.8871,3463.7,3463.3,0.817]
[1719896006134,0.20997233,3463.6,3463.3,0.817]
[1719896006363,2.8871,3463.7,3463.3,0.817]
[1719896006670,0.20997234,3463.6,3463.3,0.817]
[1719896006854,2.8871,3463.7,3463.3,0.817]
[1719896007019,0.20997287,3463.6,3463.3,0.817]
[1719896007223,2.8871,3463.7,3463.3,0.817]
[1719896007452,0.20997252,3463.6,3463.3,0.817]
[1719896007646,2.8871,3463.7,3463.3,0.817]
[1719896007955,0.20997211,3463.6,3463.3,0.817]
[1719896008159,2.8871,3463.7,3463.3,0.817]
[1719896008336,0.20997289,3463.6,3463.3,0.817]
[1719896008663,2.8871,3463.7,3463.3,0.817]
[1719896008843,0.2099725,3463.6,3463.4,0.07091708]
[1719896009158,2.8871,3463.7,3463.4,0.07091708]
[1719896009346,0.20997241,3463.6,3463.4,0.07091708]
[1719896009660,2.8871,3463.7,3463.4,0.07091708]
[1719896010660,0.20997694,3463.6,3463.4,0.07091708]
[1719896010834,2.8871,3463.7,3463.2,3.0948]
[1719896011034,0.2099748,3463.6,3463.3,0.07089688]
[1719896011332,2.8871,3463.7,3463.2,3.0948]
[1719896011532,0.20997583,3463.6,3463.4,0.07089688]
[1719896011762,2.8871,3463.7,3463.2,3.0948]
[1719896011959,0.20997589,3463.6,3463.5,0.07089688]
[1719896012263,3.09715589,3463.6,3463.2,3.0948]
[1719896012438,2.88718,3463.6,3463.5,0.07089688]
[1719896012627,3.097156,3463.6,3463.2,3.0948]
[1719896012834,2.88718,3463.6,3463.3,0.07089688]
[1719896013034,2.88718,3463.6,3463.2,3.0948]
[1719896013360,2.88718,3463.6,3463.3,0.07089688]
[1719896013672,2.88718,3463.6,3463.4,0.07089688]
[1719896014230,2.88718,3463.6,3463.5,0.07089688]
[1719896014430,3.09715609,3463.6,3463.5,0.07089688]
[1719896014846,3.09715609,3463.6,3463.2,3.0948]
[1719896015047,2.88718,3463.6,3463.2,3.0948]
[1719896015245,2.88718,3463.6,3463.3,0.07089688]
[1719896015648,2.88718,3463.6,3463.4,0.07089688]
[1719896015968,2.88718,3463.6,3463.2,3.0948]
[1719896016139,2.88718,3463.6,3463.5,0.07089688]
[1719896016338,3.09715537,3463.6,3463.2,3.0948]
[1719896016572,2.88718,3463.6,3463.5,0.07089688]
[1719896016770,3.0971556,3463.6,3463.2,3.0948]
[1719896016951,2.88718,3463.6,3463.5,0.07089688]
[1719896017158,3.09715659,3463.6,3463.2,3.0948]
[1719896017338,2.88718,3463.6,3463.5,0.07089688]
[1719896017540,3.09715487,3463.6,3463.2,3.0948]
[1719896017739,2.88718,3463.6,3463.5,0.07089688]
[1719896017968,3.09715614,3463.6,3463.2,3.0948]
[1719896018270,2.88718,3463.6,3463.5,0.07089688]
[1719896018442,3.09715606,3463.6,3463.5,0.07089688]
[1719896018638,3.09715606,3463.6,3463.2,3.0948]
[1719896018973,2.88718,3463.6,3463.3,0.07089688]
[1719896019171,2.88718,3463.6,3463.2,3.0948]
[1719896019340,2.88718,3463.6,3463.4,0.07089688]
[1719896019540,2.88718,3463.6,3463.2,3.0948]
[1719896019873,2.88718,3463.6,3463.3,0.07089688]
[1719896020034,2.88718,3463.6,3463.2,3.0948]
[1719896020450,2.88718,3463.6,3463.3,0.07089688]
[1719896020875,0.20997581,3463.5,3463.4,0.07089688]
[1719896021039,2.88718,3463.6,3463.4,0.07089688]
[1719896021236,2.88718,3463.6,3463.2,3.0948]
[1719896021441,2.88718,3463.6,3463.3,0.07089688]
[1719896021742,2.88718,3463.6,3463.2,3.0948]
[1719896021943,0.20997982,3463.5,3463.4,0.07089688]
[1719896022143,3.09724982,3463.5,3463.2,2.2778]
[1719896022358,2.88727,3463.5,3463.1,0.817]
[1719896022987,2.88727,3463.5,3463.2,0.07089688]
[1719896025676,2.88733,3463.4,3463.2,0.07089688]
[1719896027227,2.88741,3463.3,3463.0,0.817]
[1719896028195,1.46676374,3463.2,3463.0,0.817]
[1719896028494,2.88741,3463.3,3463.0,0.817]
[1719896028794,1.46676616,3463.2,3463.0,0.817]
[1719896028995,2.88741,3463.3,3463.0,0.817]
[1719896029297,1.46675815,3463.2,3463.0,0.817]
[1719896029495,2.88741,3463.3,3463.0,0.817]
[1719896029697,1.46675963,3463.2,3463.0,0.817]
[1719896029993,2.88741,3463.3,3463.0,0.817]
[1719896030197,1.46676153,3463.2,3463.0,0.817]
[1719896030401,2.88741,3463.3,3463.0,0.817]
[1719896030587,1.46676148,3463.2,3463.0,0.817]
[1719896030790,2.88741,3463.3,3463.0,0.817]
[1719896030990,1.466761,3463.2,3463.0,0.817]
[1719896031170,2.88741,3463.3,3463.0,0.817]
[1719896031370,1.46674607,3463.2,3463.0,0.817]
[1719896031688,2.88741,3463.3,3463.0,0.817]
[1719896031889,1.4667467,3463.2,3463.0,0.817]
[1719896032069,2.88741,3463.3,3463.0,0.817]
[1719896032587,1.46674665,3463.2,3463.0,0.817]
[1719896032777,2.88741,3463.3,3463.0,0.817]
[1719896032974,1.46673535,3463.2,3463.0,0.817]
[1719896033177,2.88741,3463.3,3463.0,0.817]
[1719896033395,1.46675037,3463.2,3463.0,0.817]
[1719896033582,2.88741,3463.3,3463.0,0.817]
[1719896033786,1.46674665,3463.2,3463.0,0.817]
[1719896033985,2.88741,3463.3,3463.0,0.817]
[1719896034396,1.4667382,3463.2,3463.0,0.817]
[1719896034566,2.88741,3463.3,3463.0,0.817]
[1719896034770,1.46673769,3463.2,3463.0,0.817]
[1719896034969,2.88741,3463.3,3463.0,0.817]
[1719896035184,1.46673625,3463.2,3463.0,0.817]
[1719896035392,2.88741,3463.3,3463.0,0.817]
[1719896035605,1.46673622,3463.2,3463.0,0.817]
[1719896035770,2.88741,3463.3,3463.0,0.817]
[1719896038819,2.88741,3463.3,3463.1,0.07091709]
[1719896038977,1.46674436,3463.2,3463.1,0.07091709]
[1719896039313,2.4333,3463.5,3463.1,0.07091709]
[1719896039613,1.46669853,3463.4,3463.1,0.07091709]
[1719896039774,1.46669853,3463.3,3463.1,0.07091709]
[1719896039981,2.4333,3463.5,3463.1,0.07091709]
[1719896040201,1.46668754,3463.4,3463.1,0.07091709]
[1719896040423,1.46668754,3463.3,3463.1,0.07091709]
[1719896040604,2.88736,3463.4,3463.1,0.07091709]
[1719896040805,1.46668389,3463.3,3463.1,0.07091709]
[1719896040981,2.88736,3463.4,3463.1,0.07091709]
[1719896041180,1.46668388,3463.3,3463.1,0.07091709]
[1719896041410,2.88736,3463.4,3463.1,0.07091709]
[1719896041615,1.46668399,3463.3,3463.1,0.07091709]
[1719896041778,2.88736,3463.4,3463.1,0.07091709]
[1719896041979,1.46668469,3463.3,3463.1,0.07091709]
[1719896042204,2.88736,3463.4,3463.1,0.07091709]
[1719896042408,1.46668496,3463.3,3463.1,0.07091709]
[1719896042704,2.88736,3463.4,3463.1,0.07091709]
[1719896042901,1.46668346,3463.3,3463.2,0.817]
[1719896043109,2.88727,3463.5,3463.2,0.88795754]
[1719896043312,1.46664326,3463.4,3463.2,0.88795754]
[1719896043478,2.88727,3463.5,3463.2,0.88795754]
[1719896043680,1.46664267,3463.4,3463.2,0.88795754]
[1719896043889,2.88727,3463.5,3463.2,0.88795754]
[1719896044198,1.46662691,3463.4,3463.2,0.88795754]
[1719896044396,2.88727,3463.5,3463.2,0.88795754]
[1719896044704,1.4666284,3463.4,3463.2,0.88795754]
[1719896044905,2.88727,3463.5,3463.2,0.88795754]
[1719896045105,1.46663345,3463.4,3463.2,0.88795754]
[1719896045405,2.88727,3463.5,3463.2,0.88795754]
[1719896045726,1.46662088,3463.4,3463.2,0.88795754]
[1719896046010,2.88727,3463.5,3463.2,0.88795754]
[1719896046178,1.46662486,3463.4,3463.2,0.88795754]
[1719896046378,2.88727,3463.5,3463.2,0.88795754]
[1719896046607,1.46661712,3463.4,3463.2,0.88795754]
[1719896046781,1.46661712,3463.3,3463.2,0.88795754]
[1719896046978,2.88727,3463.5,3463.2,0.88795754]
[1719896047182,1.46663637,3463.4,3463.2,0.88795754]
[1719896047517,2.88727,3463.5,3463.2,0.88795754]
[1719896047711,1.46662537,3463.4,3463.2,0.88795754]
[1719896047891,1.46662545,3463.3,3463.2,0.88795754]
[1719896048390,1.46663686,3463.3,3463.2,0.88795754]
[1719896048587,2.88718,3463.6,3463.2,0.88795754]
[1719896048791,1.46658743,3463.5,3463.2,0.88795754]
[1719896048990,1.46658743,3463.4,3463.2,0.88795754]
[1719896049194,2.88718,3463.6,3463.2,0.88795754]
[1719896049395,1.46660611,3463.5,3463.2,0.88795754]
[1719896049595,1.46660611,3463.4,3463.2,0.88795754]
[1719896049796,2.88718,3463.6,3463.2,0.88795754]
[1719896049992,1.46661095,3463.5,3463.2,0.88795754]
[1719896050216,1.46661095,3463.4,3463.2,0.88795754]
[1719896050416,2.88718,3463.6,3463.2,0.88795754]
[1719896050605,1.46660459,3463.5,3463.2,0.88795754]
[1719896050917,1.46658363,3463.4,3463.2,0.88795754]
[1719896051218,2.88718,3463.6,3463.2,0.88795754]
[1719896051383,1.46660003,3463.5,3463.2,0.88795754]
[1719896051583,1.46660003,3463.4,3463.2,0.88795754]
[1719896051813,2.88718,3463.6,3463.2,0.88795754]
[1719896052015,1.46659616,3463.5,3463.2,0.88795754]
[1719896052183,1.46659616,3463.4,3463.2,0.88795754]
[1719896052387,2.88718,3463.6,3463.2,0.88795754]
[1719896052584,1.46660091,3463.5,3463.2,0.88795754]
[1719896052783,1.46660091,3463.4,3463.2,0.88795754]
[1719896053010,2.88718,3463.6,3463.2,0.88795754]
[1719896053315,1.4666008,3463.5,3463.2,0.88795754]
[1719896053511,1.4666008,3463.4,3463.2,0.88795754]
[1719896053724,2.88718,3463.6,3463.2,0.88795754]
[1719896053886,1.46660317,3463.5,3463.2,0.88795754]
[1719896054215,1.46663099,3463.4,3463.2,0.88795754]
[1719896054416,1.46663099,3463.3,3463.2,0.88795754]
[1719896054621,1.46663099,3463.5,3463.2,0.88795754]
[1719896056525,1.46663099,3463.5,3463.2,0.07095754]
[1719896056728,2.73005509,3463.5,3463.2,0.817]
[1719896056927,1.46663099,3463.4,3463.3,0.07089349]
[1719896057119,1.46663099,3463.4,3463.2,0.817]
[1719896057426,2.88718,3463.6,3463.3,0.07089349]
[1719896057730,1.4665849,3463.5,3463.2,0.817]
[1719896057933,1.46654704,3463.4,3463.3,0.07089349]
[1719896058105,1.46654704,3463.4,3463.2,0.817]
[1719896058311,2.88718,3463.6,3463.2,0.817]
[1719896058509,1.46654969,3463.5,3463.3,0.07089349]
[1719896058734,1.46654969,3463.4,3463.2,0.817]
[1719896059027,5.88703,3463.8,3463.3,0.07089349]
[1719896059195,1.46653702,3463.7,3463.3,0.07089349]
[1719896059396,1.46653702,3463.6,3463.2,0.817]
[1719896059645,1.46653702,3463.5,3463.4,0.07089349]
[1719896059997,1.46653702,3463.5,3463.2,0.817]
[1719896060198,2.3693,3463.7,3463.4,0.07089349]
[1719896060432,1.4665101,3463.6,3463.2,0.817]
[1719896060631,2.3693,3463.7,3463.5,0.07089349]
[1719896060929,1.46653443,3463.6,3463.2,0.817]
[1719896062529,1.46653443,3463.6,3463.1,0.817]
[1719896063030,4.35371443,3463.6,3463.1,0.817]
[1719896063237,3.76253443,3463.5,3463.1,0.817]
[1719896063441,1.46653443,3463.4,3463.1,0.817]
[1719896063741,2.296,3463.5,3463.1,0.817]
[1719896063911,1.46664183,3463.4,3463.1,0.817]
[1719896066000,2.296,3463.5,3463.1,0.817]
[1719896066301,1.46662288,3463.4,3463.1,0.817]
[1719896066523,1.46662288,3463.3,3463.1,0.817]
[1719896066720,2.296,3463.5,3463.1,0.817]
[1719896066933,1.46662042,3463.4,3463.1,0.817]
[1719896067136,2.296,3463.5,3463.1,0.817]
[1719896067343,1.46662112,3463.4,3463.1,0.817]
[1719896067556,2.296,3463.5,3463.1,0.817]
[1719896067709,1.46662123,3463.4,3463.1,0.817]
[1719896068015,2.296,3463.5,3463.1,0.817]
[1719896068216,1.46662187,3463.4,3463.1,0.817]
[1719896068415,2.296,3463.5,3463.1,0.817]
[1719896068727,1.46662092,3463.4,3463.2,0.07089012]
[1719896068931,2.296,3463.5,3463.2,0.07089012]
[1719896069105,1.46662102,3463.4,3463.2,0.07089012]
[1719896069307,2.296,3463.5,3463.2,0.07089012]
[1719896069640,1.46662177,3463.4,3463.2,0.07089012]
[1719896069828,2.296,3463.5,3463.2,0.07089012]
[1719896070017,1.46662163,3463.4,3463.2,0.07089012]
[1719896070216,2.296,3463.5,3463.2,0.07089012]
[1719896070639,1.46662151,3463.4,3463.2,0.07089012]
[1719896070843,1.4666212,3463.3,3463.2,0.07089012]
[1719896071040,1.46662137,3463.3,3463.2,0.07089012]
[1719896071338,2.296,3463.5,3463.2,0.07089012]
[1719896071541,1.46662153,3463.4,3463.2,0.07089012]
[1719896071735,2.296,3463.5,3463.2,0.07089012]
[1719896071902,1.46662133,3463.4,3463.2,0.07089012]
[1719896072104,1.46662234,3463.3,3463.2,0.07089012]
[1719896072306,2.296,3463.5,3463.2,0.07089012]
[1719896072538,1.46662127,3463.4,3463.2,0.07089012]
[1719896072741,2.296,3463.5,3463.2,0.07089012]
[1719896072941,1.46662175,3463.4,3463.2,0.07089012]
[1719896073142,2.296,3463.5,3463.2,0.07089012]
[1719896073441,1.46662174,3463.4,3463.2,0.07089012]
[1719896073740,1.46662181,3463.3,3463.2,0.07089012]
[1719896075227,1.46661441,3463.3,3463.2,0.07089012]
[1719896076639,2.88718,3463.6,3463.2,0.07089012]
[1719896076813,1.46654736,3463.5,3463.3,0.817]
[1719896077031,1.46654699,3463.4,3463.3,0.817]
[1719896080025,2.88718,3463.6,3463.3,0.817]
[1719896080226,1.46659255,3463.5,3463.3,0.817]
[1719896080429,1.46659255,3463.4,3463.3,0.817]
[1719896083357,2.88718,3463.6,3463.3,0.817]
[1719896083695,2.88718,3463.6,3463.2,0.817]
[1719896083696,1.4666026,3463.5,3463.2,0.817]
[1719896083823,4.001361,3463.6,3463.4,0.07092045]
[1719896084157,1.46661616,3463.5,3463.2,0.817]
[1719896084337,1.46661616,3463.4,3463.3,0.07094068]
[1719896084539,1.46661616,3463.5,3463.2,0.817]
[1719896084740,1.46661616,3463.4,3463.3,0.07094068]
[1719896085048,1.46661616,3463.4,3463.2,0.817]
[1719896085226,2.88718,3463.6,3463.3,0.07094068]
[1719896085425,1.46661784,3463.5,3463.3,0.07094068]
[1719896085657,1.46661784,3463.4,3463.2,0.817]
[1719896085867,1.46661784,3463.3,3463.2,0.817]
[1719896086157,1.46661784,3463.3,3463.1,0.817]
[1719896086331,1.46661784,3463.2,3463.1,0.817]
[1719896086532,1.46662918,3463.4,3463.1,0.817]
[1719896086727,1.46662841,3463.3,3463.1,0.817]
[1719896087040,1.46662841,3463.2,3463.1,0.817]
[1719896089961,1.46662936,3463.2,3463.1,0.817]
[1719896092985,1.46662936,3463.2,3462.6,5.2858]
[1719896093294,1.46674528,3463.1,3462.9,0.817]
[1719896093592,5.18174,3463.4,3462.9,0.817]
[1719896093755,1.46677263,3463.3,3462.9,0.817]
[1719896093948,5.18174,3463.4,3462.9,0.817]
[1719896093949,1.46677263,3463.2,3462.9,0.817]
[1719896094157,1.46677263,3463.1,3462.9,0.817]
[1719896094365,5.18174,3463.4,3462.9,0.817]
[1719896094564,1.46676602,3463.3,3462.9,0.817]
[1719896094767,1.46676602,3463.2,3462.9,0.817]
[1719896094974,1.46676602,3463.1,3462.9,0.817]
[1719896095181,5.18174,3463.4,3462.9,0.817]
[1719896095494,1.46675286,3463.3,3462.9,0.817]
[1719896095699,1.46675286,3463.2,3462.9,0.817]
[1719896095990,1.46675286,3463.1,3462.9,0.817]
[1719896096186,5.18174,3463.4,3462.9,0.817]
[1719896096399,1.46676352,3463.3,3462.9,0.817]
[1719896096550,1.46676352,3463.2,3462.9,0.817]
[1719896096890,1.46676442,3463.1,3462.9,0.817]
[1719896097191,1.46681789,3463.0,3462.6,2.3978]
[1719896097490,1.46692657,3462.9,3462.6,3.2148]
[1719896097789,2.8875,3463.2,3462.6,3.2148]
[1719896097987,1.46688952,3463.1,3462.6,3.2148]
[1719896098193,1.46688952,3463.0,3462.6,3.2148]
[1719896098484,2.8875,3463.2,3462.6,3.2148]
[1719896098673,1.46691233,3463.1,3462.6,3.2148]
[1719896098862,1.46691233,3463.0,3462.7,0.07106202]
[1719896099062,2.88759,3463.1,3462.7,0.07106202]
[1719896099265,2.8875,3463.2,3462.7,0.88806202]
[1719896099266,4.35458353,3463.0,3462.7,0.88806202]
[1719896099599,2.88767,3463.0,3462.7,0.88806202]
[1719896100492,2.88767,3463.0,3462.7,0.07106202]
[1719896100686,1.46696755,3462.9,3462.7,0.07106202]
[1719896100869,2.88767,3463.0,3462.5,0.817]
[1719896101066,1.46697259,3462.9,3462.8,0.07106202]
[1719896101586,1.46697259,3462.9,3462.5,0.817]
[1719896101788,2.88767,3463.0,3462.8,0.07106202]
[1719896101989,1.46698888,3462.9,3462.5,0.817]
[1719896102188,2.88767,3463.0,3462.9,0.07106202]
[1719896102395,2.88785,3462.8,3462.4,2.3892]
[1719896102701,2.88794,3462.7,3462.3,0.817]
[1719896103208,2.88794,3462.7,3462.4,0.07114967]
[1719896107680,2.88794,3462.7,3462.4,0.817]
[1719896107875,2.88794,3462.7,3462.5,0.06899038]
[1719896110279,2.88794,3462.7,3462.4,0.817]
[1719896110702,2.88794,3462.7,3462.5,0.06909827]
[1719896111208,2.888,3462.6,3462.5,0.06909827]
[1719896111582,2.88813,3462.5,3462.2,0.4]
[1719896111785,2.88813,3462.5,3462.3,0.06909827]
[1719896112308,2.88813,3462.5,3462.4,0.06909827]
[1719896112711,2.88813,3462.5,3462.2,0.4]
[1719896112894,2.88813,3462.5,3462.4,0.06909827]
[1719896113094,2.88813,3462.5,3462.2,0.4]
[1719896113297,2.88813,3462.5,3462.3,0.06914547]
[1719896113501,2.88813,3462.5,3462.2,0.4]
[1719896113800,2.88813,3462.5,3462.3,0.06686423]
[1719896114222,2.88813,3462.5,3462.2,0.4]
[1719896114894,2.88813,3462.5,3462.3,0.06455938]
[1719896115286,2.88813,3462.5,3462.2,0.4]
[1719896115899,2.88813,3462.5,3462.3,0.06455938]
[1719896116096,2.88813,3462.5,3462.2,0.4]
[1719896116413,2.88813,3462.5,3462.3,0.06454252]
[1719896116790,2.88813,3462.5,3462.2,0.4]
[1719896117416,2.88813,3462.5,3462.3,0.06454252]
[1719896117913,2.88813,3462.5,3462.2,0.4]
[1719896118113,2.88813,3462.5,3462.4,0.06454252]
[1719896118295,2.88813,3462.5,3462.2,0.4]
[1719896118499,2.88813,3462.5,3462.4,0.06454252]
[1719896118720,2.88813,3462.5,3462.2,0.4]
[1719896118905,2.88813,3462.5,3462.4,0.06454252]
[1719896119106,2.88813,3462.5,3462.3,0.817]
[1719896119411,2.88813,3462.5,3462.4,0.06454252]
[1719896121792,2.88813,3462.5,3462.2,1.217]
[1719896122013,2.88813,3462.5,3462.3,0.06460322]
[1719896122416,2.88813,3462.5,3462.2,1.217]
[1719896122727,2.88813,3462.5,3462.4,0.06462345]
[1719896122921,2.88813,3462.5,3462.2,1.217]
[1719896123116,2.88813,3462.5,3462.4,0.06462345]
[1719896123285,2.88813,3462.5,3462.2,1.217]
[1719896123492,2.88813,3462.5,3462.4,0.06462345]
[1719896124000,2.88813,3462.5,3462.2,1.217]
[1719896124196,2.88813,3462.5,3462.4,0.06462345]
[1719896124401,2.88813,3462.5,3462.2,1.217]
[1719896124614,2.88813,3462.5,3462.4,0.06462008]
[1719896124801,2.88813,3462.5,3462.2,1.217]
[1719896125120,2.88813,3462.5,3462.4,0.06462008]
[1719896125604,2.88813,3462.5,3462.2,1.217]
[1719896125922,2.88813,3462.5,3462.4,0.06462008]
[1719896126120,2.88813,3462.5,3462.2,1.217]
[1719896126322,2.88813,3462.5,3462.4,0.06462008]
[1719896126500,2.88813,3462.5,3462.2,1.217]
[1719896127015,2.88813,3462.5,3462.3,0.06462008]
[1719896127412,2.88813,3462.5,3462.2,1.217]
[1719896127618,2.88813,3462.5,3462.4,0.06462008]
[1719896127800,2.88813,3462.5,3462.2,1.217]
[1719896128006,2.88813,3462.5,3462.4,0.06462008]
[1719896128227,2.88813,3462.5,3462.2,1.217]
[1719896128394,2.88813,3462.5,3462.4,0.06462008]
[1719896128596,2.88813,3462.5,3462.2,1.217]
[1719896128797,2.88813,3462.5,3462.3,0.06462008]
[1719896128997,2.88813,3462.5,3462.2,1.217]
[1719896129214,2.88813,3462.5,3462.3,0.06462008]
[1719896129610,2.88813,3462.5,3462.2,1.217]
[1719896129810,2.88813,3462.5,3462.4,0.06462008]
[1719896130096,2.88813,3462.5,3462.2,1.217]
[1719896130333,5.36383,3462.5,3462.4,0.06462008]
[1719896130497,2.88825,3462.3,3462.2,0.4]
[1719896142425,3.50754695,3462.3,3462.2,0.4]
[1719896143618,5.92894695,3462.3,3462.2,0.4]
[1719896143818,6.81065865,3462.3,3462.2,0.45841199]
[1719896144022,6.81065865,3462.3,3462.2,0.4]
[1719896144422,9.69890865,3462.3,3462.2,0.4]
[1719896160767,12.69890865,3462.3,3462.2,0.4]
[1719896161947,10.27750865,3462.3,3462.2,0.4]
[1719896162151,9.39579695,3462.3,3462.2,0.4]
[1719896174778,11.73599695,3462.3,3462.2,0.4]
[1719896174981,14.62424695,3462.3,3462.2,0.4]
[1719896175186,15.44124695,3462.3,3462.2,0.4]
[1719896182219,17.66780558,3462.3,3462.2,0.4]
[1719896183561,17.667789,3462.3,3462.2,0.4]
[1719896186698,15.44124695,3462.3,3462.2,0.4]
[1719896186904,17.66773723,3462.3,3462.2,0.4]
[1719896189991,15.44124695,3462.3,3462.2,0.4]
[1719896190197,17.66768925,3462.3,3462.2,0.4]
[1719896190391,15.44124695,3462.3,3462.2,0.4]
[1719896190709,17.66769164,3462.3,3462.2,0.4]
[1719896191492,15.44124695,3462.3,3462.2,0.4]
[1719896192308,16.98537165,3462.3,3462.2,0.4]
[1719896192728,16.16837165,3462.3,3462.2,0.4]
[1719896192929,16.98537165,3462.3,3462.2,0.4]
[1719896193519,14.64517165,3462.3,3462.2,0.4]
[1719896197900,2.889,3461.4,3460.9,2.2756]
[1719896198100,0.61929695,3461.3,3461.0,2.2756]
[1719896198405,0.61929695,3461.3,3461.0,2.33444377]
[1719896200607,0.61929695,3461.3,3461.0,3.15144377]
[1719896201810,0.61929695,3461.3,3461.0,2.33444377]
[1719896202021,0.61929695,3461.3,3461.1,0.817]
[1719896202604,0.61929695,3461.3,3461.2,0.05884377]
[1719896203009,0.61929695,3461.3,3461.1,0.817]
[1719896203209,0.61929695,3461.3,3461.2,0.05884377]
[1719896203611,0.61929695,3461.3,3461.1,0.817]
[1719896203813,0.61929695,3461.3,3461.2,0.05884377]
[1719896204145,0.61929695,3461.3,3461.1,0.817]
[1719896204341,0.61929695,3461.3,3461.2,0.05884377]
[1719896204768,0.61929695,3461.3,3461.1,0.817]
[1719896204928,0.61929695,3461.3,3461.2,0.05884377]
[1719896205443,0.61929695,3461.3,3461.1,0.817]
[1719896205742,0.61929695,3461.3,3461.2,0.05884377]
[1719896206041,0.61929695,3461.3,3461.1,0.817]
[1719896206246,2.889,3461.4,3461.1,0.817]
[1719896206446,2.889,3461.4,3461.2,0.05884377]
[1719896206642,2.889,3461.4,3461.1,0.817]
[1719896206843,2.889,3461.4,3461.2,0.05884377]
[1719896207046,0.97310199,3461.3,3461.2,0.05884377]
[1719896207255,2.889,3461.4,3461.1,0.817]
[1719896207547,2.889,3461.4,3461.2,0.05884377]
[1719896207948,2.889,3461.4,3461.1,0.817]
[1719896208113,2.889,3461.4,3461.3,0.05884377]
[1719896208319,2.889,3461.4,3461.1,0.817]
[1719896208554,2.889,3461.4,3461.3,0.05884377]
[1719896208758,2.889,3461.4,3461.2,0.05892137]
[1719896208926,2.889,3461.4,3461.1,0.817]
[1719896209123,2.889,3461.4,3461.0,2.2756]
[1719896209124,2.889,3461.4,3461.3,0.05892137]
[1719896209353,2.889,3461.4,3461.0,3.0926]
[1719896209730,2.889,3461.4,3461.1,0.05892137]
[1719896209926,5.3345,3461.3,3461.1,0.05892137]
[1719896210432,5.3345,3461.3,3460.7,0.817]
[1719896210656,2.8891,3461.3,3460.8,2.2846]
[1719896210955,2.8891,3461.3,3460.9,0.05695992]